fUST/lending_fUST_20250203
["ID","MTS","AMOUNT","RATE_DAILY","PERIOD"]
[351407601,1738555844583,-500.0,0.00016438,2]
[351407602,1738555844593,-500.0,0.00016438,2]
[351407603,1738555844603,-500.0,0.00016438,2]
[351407604,1738555844612,-500.0,0.00016438,2]
[351407605,1738555844622,-500.0,0.00016438,2]
[351407606,1738555844632,-500.0,0.00016438,2]
[351407607,1738555844642,-500.0,0.00016438,2]
[351407608,1738555844651,-500.0,0.00016438,2]
[351407609,1738555844661,-504.42855005,0.00016438,2]
[351407610,1738555844671,-500.0,0.00016438,2]
[351407611,1738555844681,-500.0,0.00016438,2]
[351407612,1738555844693,-1224.59,0.00016438,2]
[351407613,1738555844703,-500.0,0.00016438,2]
[351407614,1738555844714,-500.0,0.00016438,2]
[351407615,1738555844724,-1906.95,0.00016438,2]
[351407616,1738555844734,-157.97766199,0.00016438,2]
[351407617,1738555844875,-500.0,0.00016438,2]
[351407618,1738555844886,-603.27,0.00016438,2]
[351407619,1738555844896,-500.0,0.00016438,2]
[351407620,1738555844906,-500.0,0.00016438,2]
[351407621,1738555844916,-664.64,0.00016438,2]
[351407622,1738555844926,-500.0,0.00016438,2]
[351407623,1738555844939,-501.07388171,0.00016438,2]
[351407624,1738555844948,-500.36686645,0.00016438,2]
[351407625,1738555844957,-500.0,0.00016438,2]
[351407626,1738555844968,-1476.79,0.00016438,2]
[351407627,1738555844979,-500.0,0.00016438,2]
[351407628,1738555844988,-500.0,0.00016438,2]
[351407629,1738555844998,-500.0,0.00016438,2]
[351407630,1738555845008,-500.0,0.00016438,2]
[351407631,1738555845018,-3273.1,0.00016438,2]
[351407632,1738555845029,-500.0,0.00016438,2]
[351407633,1738555845039,-500.0,0.00016438,2]
[351407634,1738555845049,-500.0,0.00016438,2]
[351407635,1738555845059,-500.0,0.00016438,2]
[351407636,1738555845069,-500.0,0.00016438,2]
[351407637,1738555845079,-500.0,0.00016438,2]
[351407638,1738555845088,-500.0,0.00016438,2]
[351407639,1738555845098,-501.13120615,0.00016438,2]
[351407640,1738555845107,-500.0,0.00016438,2]
[351407641,1738555845117,-787.39,0.00016439,2]
[351407642,1738555845127,-4233.892726,0.0001644,2]
[351407643,1738555845138,-502.62444838,0.00016473,2]
[351407644,1738555845147,-500.0,0.00016473,2]
[351407645,1738555845156,-500.0,0.00016473,2]
[351407646,1738555845166,-500.0,0.00016473,2]
[351407647,1738555845175,-500.0,0.00016473,2]
[351407648,1738555845184,-358.38908349,0.00016475,2]
[351407649,1738555845194,-152.0,0.00016479,2]
[351407650,1738555845204,-647.7,0.00016572,2]
[351407651,1738555845216,-500.0,0.00016574,2]
[351407652,1738555845226,-787.39,0.00016574,2]
[351407653,1738555845236,-787.39,0.00016574,2]
[351407654,1738555845246,-787.39,0.00016574,2]
[351407655,1738555845256,-787.39,0.00016574,2]
[351407656,1738555845266,-787.39,0.00016574,2]
[351407657,1738555845276,-787.39,0.00016574,2]
[351407658,1738555845286,-787.54188041,0.00016574,2]
[351407659,1738555845296,-647.7,0.00016574,2]
[351407660,1738555845305,-647.7,0.00016574,2]
[351407661,1738555845315,-647.7,0.00016574,2]
[351407662,1738555845324,-647.7,0.00016574,2]
[351407663,1738555845334,-647.7,0.00016574,2]
[351407664,1738555845343,-647.7,0.00016574,2]
[351407665,1738555845352,-357.58046581,0.00016575,2]
[351407666,1738555845361,-500.0,0.00016575,2]
[351407667,1738555845371,-500.0,0.00016575,2]
[351407668,1738555845381,-397.12795239,0.00016575,2]
[351407669,1738555845390,-500.0,0.00016575,2]
[351407670,1738555845400,-500.0,0.00016575,2]
[351407671,1738555845410,-512.73691846,0.00016575,2]
[351407672,1738555845421,-500.0,0.00016575,2]
[351407673,1738555845431,-285.61534595,0.00016575,2]
[351407674,1738555845440,-500.0,0.00016575,2]
[351407675,1738555845450,-501.73215108,0.00016575,2]
[351407676,1738555845460,-500.0,0.00016575,2]
[351407677,1738555845472,-500.0,0.00016575,2]
[351407678,1738555845482,-500.0,0.00016575,2]
[351407679,1738555845491,-473.66671867,0.00016575,2]
[351407680,1738555845501,-317.14419512,0.00016575,2]
[351407681,1738555845511,-354.52687472,0.00016575,2]
[351407682,1738555845521,-500.0,0.00016575,2]
[351407683,1738555845531,-500.0,0.00016575,2]
[351407684,1738555845540,-509.13311743,0.00016575,2]
[351407685,1738555845550,-500.0,0.00016575,2]
[351407686,1738555845560,-504.93056133,0.00016575,2]
[351407687,1738555845570,-500.0,0.00016575,2]
[351407688,1738555845580,-500.0,0.00016575,2]
[351407689,1738555845589,-500.0,0.00016575,2]
[351407690,1738555845600,-500.0,0.00016575,2]
[351407691,1738555845610,-500.0,0.00016575,2]
[351407692,1738555845620,-472.8499999,0.00016575,2]
[351407693,1738555845630,-511.2749576,0.00016575,2]
[351407694,1738555845640,-518.11748283,0.00016575,2]
[351407695,1738555845650,-500.0,0.00016575,2]
[351407696,1738555845659,-510.22157434,0.00016575,2]
[351407697,1738555845669,-1000.0,0.00016575,2]
[351407698,1738555845679,-479.23104558,0.00016575,2]
[351407699,1738555845689,-515.21488785,0.00016575,2]
[351407700,1738555845699,-380.67984277,0.00016575,2]
[351407701,1738555845708,-500.0,0.00016575,2]
[351407702,1738555845720,-268.5965151,0.00016575,2]
[351407703,1738555845730,-500.0,0.00016575,2]
[351407704,1738555845740,-500.0,0.00016575,2]
[351407706,1738555845749,-500.0,0.00016575,2]
[351407707,1738555845759,-616.07167751,0.00016575,2]
[351407708,1738555845768,-500.0,0.00016575,2]
[351407709,1738555845778,-500.0,0.00016575,2]
[351407710,1738555845787,-400.52970098,0.00016575,2]
[351407711,1738555845797,-500.0,0.00016575,2]
[351407713,1738555845807,-500.0,0.00016575,2]
[351407715,1738555845817,-500.0,0.00016575,2]
[351407717,1738555845827,-500.0,0.00016575,2]
[351407719,1738555845836,-500.0,0.00016575,2]
[351407720,1738555845845,-530.65260412,0.00016575,2]
[351407721,1738555845855,-500.0,0.00016575,2]
[351407722,1738555845864,-500.0,0.00016575,2]
[351407723,1738555845873,-500.0,0.00016575,2]
[351407724,1738555845883,-500.0,0.00016575,2]
[351407725,1738555845892,-500.0,0.00016575,2]
[351407726,1738555845902,-500.0,0.00016575,2]
[351407727,1738555845912,-500.0,0.00016575,2]
[351407728,1738555845921,-500.0,0.00016575,2]
[351407729,1738555845931,-208.54312881,0.00016575,2]
[351407730,1738555845940,-497.12911131,0.00016575,2]
[351407731,1738555845951,-518.49096412,0.00016575,2]
[351407732,1738555845962,-500.0,0.00016575,2]
[351407733,1738555845975,-500.0,0.00016575,2]
[351407734,1738555845984,-500.0,0.00016575,2]
[351407735,1738555845994,-521.64807981,0.00016575,2]
[351407736,1738555846004,-555.88348045,0.00016575,2]
[351407737,1738555846014,-500.0,0.00016575,2]
[351407738,1738555846023,-500.0,0.00016575,2]
[351407739,1738555846033,-426.02704763,0.00016575,2]
[351407740,1738555846043,-500.0,0.00016575,2]
[351407741,1738555846052,-500.0,0.00016575,2]
[351407742,1738555846061,-500.0,0.00016575,2]
[351407744,1738555846071,-500.0,0.00016575,2]
[351407745,1738555846080,-500.0,0.00016575,2]
[351407746,1738555846090,-500.0,0.00016575,2]
[351407747,1738555846099,-504.31293024,0.00016575,2]
[351407748,1738555846109,-500.0,0.00016575,2]
[351407749,1738555846120,-500.0,0.00016575,2]
[351407750,1738555846129,-500.0,0.00016575,2]
[351407751,1738555846139,-500.0,0.00016575,2]
[351407752,1738555846148,-500.0,0.00016575,2]
[351407753,1738555846158,-500.0,0.00016575,2]
[351407754,1738555846168,-730.13,0.00016575,2]
[351407755,1738555846177,-680.56,0.00016575,2]
[351407757,1738555846187,-500.0,0.00016575,2]
[351407758,1738555846196,-500.0,0.00016575,2]
[351407759,1738555846206,-500.0,0.00016575,2]
[351407760,1738555846218,-500.0,0.00016575,2]
[351407761,1738555846227,-500.0,0.00016575,2]
[351407763,1738555846237,-500.0,0.00016575,2]
[351407765,1738555846247,-500.0,0.00016575,2]
[351407766,1738555846256,-638.75,0.00016575,2]
[351407768,1738555846265,-500.0,0.00016575,2]
[351407770,1738555846275,-500.0,0.00016575,2]
[351407772,1738555846285,-500.0,0.00016575,2]
[351407775,1738555846295,-500.0,0.00016575,2]
[351407777,1738555846305,-500.0,0.00016575,2]
[351407779,1738555846315,-500.0,0.00016575,2]
[351407780,1738555846324,-500.0,0.00016575,2]
[351407782,1738555846333,-500.0,0.00016575,2]
[351407784,1738555846343,-500.0,0.00016575,2]
[351407786,1738555846353,-500.0,0.00016575,2]
[351407788,1738555846362,-500.0,0.00016575,2]
[351407790,1738555846372,-500.0,0.00016575,2]
[351407793,1738555846386,-500.0,0.00016575,2]
[351407795,1738555846397,-323.70288888,0.00016575,2]
[351407797,1738555846407,-500.0,0.00016575,2]
[351407799,1738555846417,-500.0,0.00016575,2]
[351407801,1738555846428,-6387.56,0.00016575,2]
[351407803,1738555846438,-500.0,0.00016575,2]
[351407805,1738555846449,-608.72,0.00016575,2]
[351407807,1738555846459,-500.0,0.00016575,2]
[351407809,1738555846472,-500.0,0.00016575,2]
[351407811,1738555846483,-500.0,0.00016575,2]
[351407813,1738555846493,-500.0,0.00016575,2]
[351407814,1738555846503,-500.0,0.00016575,2]
[351407816,1738555846515,-774.66,0.00016575,2]
[351407819,1738555846525,-500.0,0.00016575,2]
[351407822,1738555846534,-500.0,0.00016575,2]
[351407824,1738555846544,-500.0,0.00016575,2]
[351407826,1738555846555,-550.0,0.00016575,2]
[351407828,1738555846564,-500.0,0.00016575,2]
[351407830,1738555846574,-617.82,0.00016575,2]
[351407832,1738555846584,-500.0,0.00016575,2]
[351407834,1738555846595,-368.45661824,0.00016575,2]
[351407837,1738555846606,-500.0,0.00016575,2]
[351407838,1738555846616,-651.47,0.00016575,2]
[351407840,1738555846626,-500.0,0.00016575,2]
[351407842,1738555846635,-505.85,0.00016575,2]
[351407844,1738555846647,-2092.39,0.00016575,2]
[351407847,1738555846657,-504.73521305,0.00016575,2]
[351407848,1738555846666,-2960.21,0.00016575,2]
[351407850,1738555846676,-500.0,0.00016575,2]
[351407853,1738555846686,-506.93,0.00016575,2]
[351407854,1738555846695,-592.66,0.00016575,2]
[351407857,1738555846704,-997.46,0.00016575,2]
[351407858,1738555846715,-500.0,0.00016575,2]
[351407860,1738555846725,-500.0,0.00016575,2]
[351407862,1738555846735,-15943.45,0.00016575,2]
[351407864,1738555846744,-500.0,0.00016575,2]
[351407866,1738555846753,-500.0,0.00016575,2]
[351407868,1738555846763,-500.0,0.00016575,2]
[351407871,1738555846772,-500.0,0.00016575,2]
[351407872,1738555846781,-983.9,0.00016575,2]
[351407874,1738555846791,-500.0,0.00016575,2]
[351407876,1738555846800,-587.49,0.00016575,2]
[351407878,1738555846809,-500.0,0.00016575,2]
[351407880,1738555846820,-8486.07,0.00016575,2]
[351407882,1738555846829,-500.0,0.00016575,2]
[351407884,1738555846839,-400.38240077,0.00016575,2]
[351407887,1738555846848,-879.39,0.00016575,2]
[351407889,1738555846858,-555.6,0.00016575,2]
[351407890,1738555846867,-500.0,0.00016575,2]
[351407893,1738555846876,-500.0,0.00016575,2]
[351407894,1738555846886,-892.31,0.00016575,2]
[351407896,1738555846895,-542.15097919,0.00016575,2]
[351407898,1738555846904,-1236.45,0.00016575,2]
[351407899,1738555846914,-500.0,0.00016575,2]
[351407900,1738555846923,-500.0,0.00016575,2]
[351407901,1738555846936,-501.73280289,0.00016575,2]
[351407902,1738555846946,-510.8243936,0.00016575,2]
[351407903,1738555846956,-501.6112255,0.00016575,2]
[351407904,1738555846968,-500.0,0.00016575,2]
[351407905,1738555846979,-3090.85,0.00016575,2]
[351407906,1738555846988,-500.0,0.00016575,2]
[351407907,1738555846998,-1792.91,0.00016575,2]
[351407908,1738555847008,-500.0,0.00016575,2]
[351407909,1738555847019,-500.0,0.00016575,2]
[351407910,1738555847030,-500.0,0.00016575,2]
[351407911,1738555847040,-500.0,0.00016575,2]
[351407912,1738555847049,-500.0,0.00016575,2]
[351407913,1738555847058,-1807.19,0.00016575,2]
[351407914,1738555847067,-4198.9,0.00016575,2]
[351407915,1738555847076,-500.0,0.00016575,2]
[351407916,1738555847086,-500.0,0.00016575,2]
[351407917,1738555847095,-791.39,0.00016575,2]
[351407918,1738555847106,-500.0,0.00016575,2]
[351407919,1738555847115,-513.64386148,0.00016575,2]
[351407920,1738555847125,-500.0,0.00016575,2]
[351407921,1738555847136,-503.57839972,0.00016575,2]
[351407922,1738555847146,-500.0,0.00016575,2]
[351407923,1738555847156,-500.0,0.00016575,2]
[351407924,1738555847166,-654.36,0.00016575,2]
[351407925,1738555847176,-500.0,0.00016575,2]
[351407926,1738555847186,-500.0,0.00016575,2]
[351407927,1738555847196,-692.24,0.00016575,2]
[351407928,1738555847206,-500.0,0.00016575,2]
[351407929,1738555847220,-500.0,0.00016575,2]
[351407930,1738555847231,-500.0,0.00016575,2]
[351407931,1738555847241,-500.0,0.00016575,2]
[351407932,1738555847250,-500.0,0.00016575,2]
[351407933,1738555847259,-500.0,0.00016575,2]
[351407934,1738555847269,-500.0,0.00016575,2]
[351407935,1738555847278,-2022.81,0.00016575,2]
[351407936,1738555847287,-500.0,0.00016575,2]
[351407937,1738555847296,-500.0,0.00016575,2]
[351407938,1738555847305,-500.0,0.00016575,2]
[351407939,1738555847314,-503.17399246,0.00016575,2]
[351407940,1738555847324,-500.0,0.00016575,2]
[351407941,1738555847333,-500.0,0.00016575,2]
[351407942,1738555847343,-1224.59,0.00016575,2]
[351407943,1738555847353,-502.87678807,0.00016575,2]
[351407944,1738555847362,-1906.95,0.00016575,2]
[351407945,1738555847372,-603.27,0.00016575,2]
[351407946,1738555847382,-500.0,0.00016575,2]
[351407947,1738555847392,-505.56033022,0.00016575,2]
[351407948,1738555847401,-664.64,0.00016575,2]
[351407949,1738555847411,-500.0,0.00016575,2]
[351407950,1738555847421,-500.0,0.00016575,2]
[351407951,1738555847432,-1476.79,0.00016575,2]
[351407952,1738555847442,-500.0,0.00016575,2]
[351407953,1738555847452,-502.66907952,0.00016575,2]
[351407954,1738555847462,-500.0,0.00016575,2]
[351407955,1738555847475,-500.0,0.00016575,2]
[351407956,1738555847485,-3273.1,0.00016575,2]
[351407957,1738555847495,-500.0,0.00016575,2]
[351407958,1738555847505,-358.38908349,0.00016612,2]
[351407959,1738555847515,-420.0,0.00016638,2]
[351407960,1738555847526,-643.7480248,0.000167,2]
[351407961,1738555847536,-354.5475049,0.000167,2]
[351407962,1738555847546,-500.0,0.00016711,2]
[351407963,1738555847556,-647.7,0.00016711,2]
[351407964,1738555847566,-647.7,0.00016711,2]
[351407965,1738555847575,-647.7,0.00016711,2]
[351407966,1738555847585,-647.7,0.00016711,2]
[351407967,1738555847594,-647.81,0.00016711,2]
[351407968,1738555847604,-500.0,0.00016712,2]
[351407969,1738555847614,-501.51376345,0.00016712,2]
[351407970,1738555847625,-500.0,0.00016712,2]
[351407971,1738555847635,-518.70157001,0.00016712,2]
[351407972,1738555847645,-504.10808778,0.00016712,2]
[351407973,1738555847654,-503.56419838,0.00016712,2]
[351407974,1738555847664,-366.15073065,0.00016712,2]
[351407975,1738555847674,-556.59053152,0.00016712,2]
[351407976,1738555847683,-500.0,0.00016712,2]
[351407978,1738555847693,-500.0,0.00016712,2]
[351407980,1738555847702,-500.0,0.00016712,2]
[351407982,1738555847712,-500.0,0.00016712,2]
[351407983,1738555847723,-500.0,0.00016712,2]
[351407984,1738555847733,-1000.0,0.00016712,2]
[351407985,1738555847742,-500.0,0.00016712,2]
[351407986,1738555847752,-500.0,0.00016712,2]
[351407987,1738555847762,-611.40191264,0.00016712,2]
[351407988,1738555847771,-500.0,0.00016712,2]
[351407989,1738555847781,-500.0,0.00016712,2]
[351407990,1738555847790,-500.0,0.00016712,2]
[351407991,1738555847800,-500.0,0.00016712,2]
[351407992,1738555847810,-500.0,0.00016712,2]
[351407993,1738555847939,-506.19357122,0.00016712,2]
[351407994,1738555847951,-500.0,0.00016712,2]
[351407995,1738555847966,-500.0,0.00016712,2]
[351407996,1738555847975,-500.0,0.00016712,2]
[351407997,1738555847985,-500.0,0.00016712,2]
[351407998,1738555847995,-500.0,0.00016712,2]
[351407999,1738555848008,-500.0,0.00016712,2]
[351408000,1738555848017,-500.0,0.00016712,2]
[351408001,1738555848027,-500.0,0.00016712,2]
[351408002,1738555848037,-497.57504489,0.00016712,2]
[351408003,1738555848047,-500.0,0.00016712,2]
[351408004,1738555848057,-500.0,0.00016712,2]
[351408005,1738555848066,-156.99651004,0.00016712,2]
[351408006,1738555848076,-500.0,0.00016712,2]
[351408007,1738555848086,-500.0,0.00016712,2]
[351408008,1738555848095,-500.0,0.00016712,2]
[351408009,1738555848105,-500.0,0.00016712,2]
[351408010,1738555848114,-500.0,0.00016712,2]
[351408011,1738555848125,-500.0,0.00016712,2]
[351408012,1738555848135,-500.0,0.00016712,2]
[351408013,1738555848145,-500.0,0.00016712,2]
[351408014,1738555848155,-500.0,0.00016712,2]
[351408015,1738555848165,-500.0,0.00016712,2]
[351408016,1738555848174,-500.0,0.00016712,2]
[351408017,1738555848184,-500.0,0.00016712,2]
[351408018,1738555848194,-500.0,0.00016712,2]
[351408019,1738555848203,-730.13,0.00016712,2]
[351408020,1738555848213,-680.56,0.00016712,2]
[351408021,1738555848224,-500.0,0.00016712,2]
[351408022,1738555848234,-500.0,0.00016712,2]
[351408023,1738555848244,-500.0,0.00016712,2]
[351408024,1738555848254,-500.0,0.00016712,2]
[351408025,1738555848263,-500.0,0.00016712,2]
[351408026,1738555848272,-291.0142808,0.00016712,2]
[351408027,1738555848282,-500.0,0.00016712,2]
[351408028,1738555848292,-638.75,0.00016712,2]
[351408029,1738555848302,-500.0,0.00016712,2]
[351408030,1738555848311,-500.0,0.00016712,2]
[351408031,1738555848320,-500.0,0.00016712,2]
[351408032,1738555848330,-500.0,0.00016712,2]
[351408033,1738555848340,-500.0,0.00016712,2]
[351408034,1738555848349,-500.0,0.00016712,2]
[351408035,1738555848358,-480.92938275,0.00016712,2]
[351408036,1738555848367,-500.0,0.00016712,2]
[351408037,1738555848377,-500.0,0.00016712,2]
[351408038,1738555848388,-500.0,0.00016712,2]
[351408039,1738555848397,-500.0,0.00016712,2]
[351408040,1738555848406,-500.0,0.00016712,2]
[351408041,1738555848416,-6387.56,0.00016712,2]
[351408042,1738555848426,-500.0,0.00016712,2]
[351408043,1738555848436,-608.72,0.00016712,2]
[351408044,1738555848446,-376.37495816,0.00016712,2]
[351408045,1738555848456,-500.0,0.00016712,2]
[351408046,1738555848467,-500.0,0.00016712,2]
[351408047,1738555848479,-500.0,0.00016712,2]
[351408048,1738555848489,-774.66,0.00016712,2]
[351408049,1738555848499,-500.0,0.00016712,2]
[351408050,1738555848508,-500.0,0.00016712,2]
[351408051,1738555848519,-500.0,0.00016712,2]
[351408052,1738555848529,-500.0,0.00016712,2]
[351408053,1738555848539,-617.82,0.00016712,2]
[351408054,1738555848549,-500.0,0.00016712,2]
[351408055,1738555848559,-651.47,0.00016712,2]
[351408056,1738555848569,-500.0,0.00016712,2]
[351408057,1738555848578,-2092.39,0.00016712,2]
[351408058,1738555848588,-505.85,0.00016712,2]
[351408059,1738555848598,-2960.21,0.00016712,2]
[351408060,1738555848608,-500.0,0.00016712,2]
[351408061,1738555848617,-506.93,0.00016712,2]
[351408062,1738555848627,-592.66,0.00016712,2]
[351408063,1738555848637,-997.46,0.00016712,2]
[351408064,1738555848647,-500.0,0.00016712,2]
[351408065,1738555848657,-188.61279889,0.00016712,2]
[351408066,1738555848667,-15943.45,0.00016712,2]
[351408067,1738555848676,-500.0,0.00016712,2]
[351408068,1738555848686,-500.0,0.00016712,2]
[351408069,1738555848695,-500.0,0.00016712,2]
[351408070,1738555848705,-520.59140733,0.00016712,2]
[351408071,1738555848714,-983.9,0.00016712,2]
[351408072,1738555848726,-500.0,0.00016712,2]
[351408073,1738555848735,-587.49,0.00016712,2]
[351408074,1738555848745,-500.0,0.00016712,2]
[351408075,1738555848755,-8486.07,0.00016712,2]
[351408076,1738555848765,-500.0,0.00016712,2]
[351408077,1738555848775,-879.39,0.00016712,2]
[351408078,1738555848784,-555.6,0.00016712,2]
[351408079,1738555848794,-500.0,0.00016712,2]
[351408080,1738555848803,-164.27514237,0.00016712,2]
[351408081,1738555848813,-892.31,0.00016712,2]
[351408082,1738555848822,-1236.45,0.00016712,2]
[351408083,1738555848832,-500.0,0.00016712,2]
[351408084,1738555848842,-500.0,0.00016712,2]
[351408085,1738555848851,-500.0,0.00016712,2]
[351408086,1738555848860,-159.29900488,0.00016712,2]
[351408087,1738555848870,-1792.91,0.00016712,2]
[351408088,1738555848880,-3090.85,0.00016712,2]
[351408089,1738555848889,-500.0,0.00016712,2]
[351408090,1738555848899,-500.0,0.00016712,2]
[351408091,1738555848909,-500.0,0.00016712,2]
[351408092,1738555848919,-500.0,0.00016712,2]
[351408093,1738555848928,-500.0,0.00016712,2]
[351408094,1738555848941,-1807.19,0.00016712,2]
[351408095,1738555848951,-500.0,0.00016712,2]
[351408096,1738555848961,-4198.9,0.00016712,2]
[351408097,1738555848974,-187.93349155,0.00016712,2]
[351408098,1738555848985,-791.39,0.00016712,2]
[351408099,1738555848996,-500.0,0.00016712,2]
[351408100,1738555849006,-500.0,0.00016712,2]
[351408101,1738555849018,-654.36,0.00016712,2]
[351408102,1738555849029,-500.0,0.00016712,2]
[351408103,1738555849039,-500.0,0.00016712,2]
[351408104,1738555849048,-692.24,0.00016712,2]
[351408105,1738555849059,-500.0,0.00016712,2]
[351408106,1738555849069,-500.0,0.00016712,2]
[351408107,1738555849079,-500.0,0.00016712,2]
[351408108,1738555849089,-500.0,0.00016712,2]
[351408109,1738555849099,-500.0,0.00016712,2]
[351408110,1738555849109,-500.0,0.00016712,2]
[351408111,1738555849119,-2022.81,0.00016712,2]
[351408112,1738555849129,-500.0,0.00016712,2]
[351408113,1738555849139,-151.59217158,0.00016712,2]
[351408114,1738555849149,-500.0,0.00016712,2]
[351408115,1738555849159,-500.0,0.00016712,2]
[351408116,1738555849169,-500.0,0.00016712,2]
[351408117,1738555849179,-1224.59,0.00016712,2]
[351408118,1738555849189,-1906.95,0.00016712,2]
[351408119,1738555849199,-603.27,0.00016712,2]
[351408120,1738555849209,-500.0,0.00016712,2]
[351408121,1738555849221,-664.64,0.00016712,2]
[351408122,1738555849230,-500.0,0.00016712,2]
[351408123,1738555849240,-500.0,0.00016712,2]
[351408124,1738555849249,-1476.79,0.00016712,2]
[351408125,1738555849259,-500.0,0.00016712,2]
[351408126,1738555849270,-500.0,0.00016712,2]
[351408127,1738555849281,-500.0,0.00016712,2]
[351408128,1738555849291,-3273.1,0.00016712,2]
[351408129,1738555849301,-500.0,0.00016712,2]
[351408130,1738555849311,-358.38908349,0.00016749,2]
[351408131,1738555849321,-9090.15,0.000168,2]
[351408132,1738555849331,-500.0,0.00016848,2]
[351408133,1738555849342,-500.0,0.00016849,2]
[351408134,1738555849352,-500.0,0.00016849,2]
[351408135,1738555849363,-500.0,0.00016849,2]
[351408136,1738555849373,-500.0,0.00016849,2]
[351408137,1738555849384,-500.0,0.00016849,2]
[351408138,1738555849395,-1000.0,0.00016849,2]
[351408139,1738555849404,-500.0,0.00016849,2]
[351408140,1738555849414,-500.0,0.00016849,2]
[351408141,1738555849425,-500.0,0.00016849,2]
[351408142,1738555849434,-500.0,0.00016849,2]
[351408143,1738555849445,-500.0,0.00016849,2]
[351408144,1738555849455,-500.0,0.00016849,2]
[351408145,1738555849465,-500.0,0.00016849,2]
[351408146,1738555849480,-503.91950484,0.00016849,2]
[351408147,1738555849491,-500.0,0.00016849,2]
[351408148,1738555849501,-500.0,0.00016849,2]
[351408149,1738555849511,-500.0,0.00016849,2]
[351408150,1738555849522,-500.0,0.00016849,2]
[351408151,1738555849532,-510.62990236,0.00016849,2]
[351408152,1738555849544,-500.0,0.00016849,2]
[351408153,1738555849555,-500.0,0.00016849,2]
[351408154,1738555849565,-500.0,0.00016849,2]
[351408155,1738555849575,-500.0,0.00016849,2]
[351408156,1738555849584,-582.12907357,0.00016849,2]
[351408157,1738555849594,-500.0,0.00016849,2]
[351408158,1738555849605,-500.0,0.00016849,2]
[351408159,1738555849614,-500.0,0.00016849,2]
[351408160,1738555849624,-500.0,0.00016849,2]
[351408161,1738555849634,-500.0,0.00016849,2]
[351408162,1738555849644,-508.62205404,0.00016849,2]
[351408163,1738555849654,-500.0,0.00016849,2]
[351408164,1738555849663,-509.43501554,0.00016849,2]
[351408165,1738555849673,-513.79005489,0.00016849,2]
[351408166,1738555849683,-500.0,0.00016849,2]
[351408167,1738555849693,-730.13,0.00016849,2]
[351408168,1738555849703,-680.56,0.00016849,2]
[351408169,1738555849714,-519.97741429,0.00016849,2]
[351408170,1738555849727,-500.0,0.00016849,2]
[351408171,1738555849737,-500.0,0.00016849,2]
[351408172,1738555849747,-500.0,0.00016849,2]
[351408173,1738555849756,-500.0,0.00016849,2]
[351408174,1738555849766,-638.75,0.00016849,2]
[351408175,1738555849776,-500.0,0.00016849,2]
[351408176,1738555849786,-500.0,0.00016849,2]
[351408177,1738555849796,-631.26361208,0.00016849,2]
[351408178,1738555849806,-500.0,0.00016849,2]
[351408179,1738555849816,-500.0,0.00016849,2]